[Event "EYCC Girls-U14 2019"]
[Site "Bratislava"]
[Date "2019.08.10"]
[Round "9.20"]
[White "Johansson-Ohman, Linnea"]
[Black "Alekseenko, Mariya"]
[Result "0-1"]
[ECO "A37"]
[WhiteElo "1529"]
[BlackElo "1848"]
[Annotator "NA"]
[PlyCount "84"]
[EventDate "2019.08.02"]
[EventType "swiss"]
[EventCountry "SVK"]
[SourceTitle "playchess.com"]
[Source "ChessBase"]
[SourceQuality "1"]
[TimeControl "40/5400+30:1800+30"]

1. c4 {[%emt 0:00:00]} c5 {[%emt 0:00:00]} 2. g3 {[%emt 0:00:00]} g6 {[%emt 0:00:00]} 3. Bg2 {[%emt 0:00:00]} Bg7 {[%emt 0:00:00]} 4. Nc3 {[%emt 0:00:21]} Nc6 {[%emt 0:00:00]} 5. Nf3 {[%emt 0:00:51]} e5 {[%emt 0:00:15]} 6. d3 {[%emt 0:00:19]} d6 {[%emt 0:00:04]} 7. O-O {[%emt 0:00:39]} Nge7 {[%emt 0:00:04]} 8. Bd2 {[%emt 0:02:03]} O-O {[%emt 0:00:15]} 9. Rb1 {[%emt 0:01:44]} b6 {[%emt 0:03:31]} 10. a3 {[%emt 0:01:16]} Bb7 {[%emt 0:00:43]} 11. b4 {[%emt 0:00:45]} Qd7 {[%emt 0:03:01]} 12. Ne1 {[%emt 0:06:43]} f5 {[%emt 0:02:22]} 13. Nc2 {[%emt 0:02:25]} f4 {[%emt 0:04:57]} 14. Ne4 {[%emt 0:09:02]} h6 {[%emt 0:01:57]} 15. e3 {[%emt 0:03:30]} g5 {[%emt 0:05:31]} 16. Qh5 {[%emt 0:06:45]} Nd8 {[%emt 0:03:03]} 17. Bc3 {[%emt 0:16:07]} d5 {[%emt 0:09:07]} 18. cxd5 {[%emt 0:10:28]} Nxd5 {[%emt 0:00:15]} 19. Bb2 {[%emt 0:04:24]} cxb4 {[%emt 0:00:28]} 20. axb4 {[%emt 0:12:32]} Nf7 {[%emt 0:00:56]} 21. exf4 {[%emt 0:03:33]} gxf4 {[%emt 0:00:52]} 22. Bh3 {[%emt 0:01:26]} Qc6 {[%emt 0:05:39]} 23. Rfc1 {[%emt 0:00:56]} Nf6 {[%emt 0:00:46]} 24. Nxf6+ {[%emt 0:03:11]} Qxf6 {[%emt 0:00:05]} 25. Bg2 {[%emt 0:05:08]} Bxg2 {[%emt 0:03:21]} 26. Kxg2 {[%emt 0:00:10]} Ng5 {[%emt 0:00:15]} 27. gxf4 {[%emt 0:04:37]} Qxf4 {[%emt 0:00:55]} 28. Rf1 {[%emt 0:00:59]} Qf6 {[%emt 0:02:55]} 29. f3 {[%emt 0:01:23]} Rad8 {[%emt 0:02:41]} 30. Rbd1 {[%emt 0:01:41]} Rf7 {[%emt 0:01:46]} 31. Ne3 {[%emt 0:01:12]} Rdf8 {[%emt 0:01:11]} 32. Ng4 {[%emt 0:01:00]} Qc6 {[%emt 0:01:06]} 33. Bxe5 {[%emt 0:00:45]} Rxf3 {[%emt 0:01:04]} 34. Kg1 {[%emt 0:00:31]} Nh3+ {[%emt 0:00:30]} 35. Qxh3 {[%emt 0:00:32]} Rxh3 {[%emt 0:00:05]} 36. Bxg7 {[%emt 0:00:58]} Rxf1+ 37. Rxf1 {[%emt 0:00:00]} Kxg7 {[%emt 0:00:40]} 38. Rf7+ {[%emt 0:00:32]} Kg8 {[%emt 0:00:14]} 39. Rxa7 {[%emt 0:00:18]} Rxd3 {[%emt 0:00:25]} 40. Ra1 {[%emt 0:00:00]} Rc3 {[%emt 0:00:00]} 41. Ra7 {[%emt 0:03:30]} Qg6 {[%emt 0:04:00]} 42. Ra8+ {[%emt 0:01:10]} Kf7 {[%emt 0:00:07]} 0-1

[Event "EYCC Girls-U14 2019"]
[Site "Bratislava"]
[Date "2019.08.10"]
[Round "9.21"]
[White "Cornileau, Juliette"]
[Black "Slusarczyk, Milena"]
[Result "1-0"]
[ECO "B53"]
[WhiteElo "1805"]
[BlackElo "1522"]
[Annotator "NA RC"]
[PlyCount "43"]
[EventDate "2019.08.02"]
[EventType "swiss"]
[EventCountry "SVK"]
[SourceTitle "playchess.com"]
[Source "ChessBase"]
[SourceQuality "1"]
[TimeControl "40/5400+30:1800+30"]

1. e4 {[%emt 0:00:00]} c5 {[%emt 0:00:00]} 2. Nf3 {[%emt 0:00:00]} d6 {[%emt 0:00:11]} 3. d4 {[%emt 0:00:00]} cxd4 {[%emt 0:00:14]} 4. Qxd4 {[%emt 0:00:11]} Nc6 {[%emt 0:01:33]} 5. Bb5 {[%emt 0:00:28]} Qd7 {[%emt 0:02:19]} 6. Bxc6 {[%emt 0:03:24]} bxc6 {[%emt 0:02:04]} 7. c4 {[%emt 0:09:47]} e5 {[%emt 0:02:36]} 8. Qd3 {[%emt 0:01:57]} f5 {[%emt 0:11:05]} 9. Nc3 {[%emt 0:07:10]} f4 {[%emt 0:02:26]} 10. b3 {[%emt 0:04:02]} Be7 {[%emt 0:04:16]} 11. Ba3 {[%emt 0:04:52]} Nh6 {[%emt 0:03:14]} 12. O-O-O {[%emt 0:10:45]} Nf7 {[%emt 0:05:19]} 13. Rd2 {[%emt 0:18:51]} O-O {[%emt 0:01:50]} 14. c5 {[%emt 0:06:24]} Rd8 {[%emt 0:06:48]} 15. Rhd1 {[%emt 0:05:58]} Qc7 {[%emt 0:04:33]} 16. Qc4 {[%emt 0:01:18]} Kf8 {[%emt 0:10:20]} 17. cxd6 {[%emt 0:01:16]} Nxd6 {[%emt 0:06:02]} 18. Bxd6 {[%emt 0:03:21]} Rxd6 {[%emt 0:05:15]} 19. Nb5 {[%emt 0:04:40]} Qa5 {[%emt 0:13:06]} 20. Nxd6 {[%emt 0:01:05]} Qa3+ {[%emt 0:01:38]} 21. Kb1 {[%emt 0:00:16]} Bxd6 {[%emt 0:01:26]} 22. Rxd6 {[%emt 0:00:13]} 1-0

[Event "EYCC Girls-U14 2019"]
[Site "Bratislava"]
[Date "2019.08.10"]
[Round "9.22"]
[White "Mikhailina, Elena"]
[Black "Toncheva, Nadya"]
[Result "1/2-1/2"]
[ECO "B54"]
[WhiteElo "1689"]
[BlackElo "2087"]
[Annotator "NA RC"]
[PlyCount "118"]
[EventDate "2019.08.02"]
[EventType "swiss"]
[EventCountry "SVK"]
[SourceTitle "playchess.com"]
[Source "ChessBase"]
[SourceQuality "1"]
[TimeControl "40/5400+30:1800+30"]

1. e4 {[%emt 0:00:00]} c5 {[%emt 0:00:00]} 2. Nf3 {[%emt 0:00:00]} d6 {[%emt 0:00:01]} 3. d4 {[%emt 0:00:00]} cxd4 {[%emt 0:00:02]} 4. Nxd4 {[%emt 0:00:00]} Nf6 {[%emt 0:00:04]} 5. f3 {[%emt 0:00:08]} e5 {[%emt 0:00:41]} 6. Nb3 {[%emt 0:00:06]} d5 {[%emt 0:00:21]} 7. Bg5 {[%emt 0:00:06]} d4 {[%emt 0:00:59]} 8. c3 {[%emt 0:00:30]} Nc6 {[%emt 0:00:14]} 9. Bb5 {[%emt 0:05:06]} h6 {[%emt 0:00:48]} 10. Bh4 {[%emt 0:22:18]} dxc3 {[%emt 0:04:27]} 11. Nxc3 {[%emt 0:00:21]} Be7 {[%emt 0:01:12]} 12. Qxd8+ {[%emt 0:21:09]} Bxd8 {[%emt 0:00:04]} 13. Bg3 {[%emt 0:00:16]} Bc7 {[%emt 0:01:47]} 14. Nd5 {[%emt 0:05:59]} Bb8 {[%emt 0:00:59]} 15. Na5 {[%emt 0:09:14]} Bd7 {[%emt 0:00:06]} 16. Nxb7 {[%emt 0:11:13]} Nxd5 {[%emt 0:00:06]} 17. exd5 {[%emt 0:00:07]} Nb4 {[%emt 0:00:03]} 18. Rc1 {[%emt 0:02:40]} Ke7 {[%emt 0:01:16]} 19. Bc4 {[%emt 0:00:55]} Rc8 {[%emt 0:04:56]} 20. O-O {[%emt 0:00:46]} a5 {[%emt 0:00:04]} 21. a3 {[%emt 0:05:53]} Ra7 {[%emt 0:02:25]} 22. d6+ {[%emt 0:08:51]} Kf8 {[%emt 0:00:06]} 23. Nxa5 {[%emt 0:03:48]} Rxa5 {[%emt 0:03:02]} 24. axb4 {[%emt 0:00:04]} Ra4 {[%emt 0:00:09]} 25. Bb5 {[%emt 0:02:02]} Rxc1 {[%emt 0:01:43]} 26. Rxc1 {[%emt 0:00:22]} Ba7+ {[%emt 0:00:02]} 27. Bf2 {[%emt 0:00:50]} Bxb5 {[%emt 0:00:06]} 28. Rc8+ {[%emt 0:00:31]} Be8 {[%emt 0:00:03]} 29. Bxa7 {[%emt 0:00:31]} Rxa7 {[%emt 0:00:03]} 30. b5 {[%emt 0:00:24]} f6 {[%emt 0:02:37]} 31. b6 {[%emt 0:00:18]} Rb7 {[%emt 0:00:29]} 32. Kf2 {[%emt 0:00:34]} g6 {[%emt 0:04:35]} 33. Ke3 {[%emt 0:00:34]} f5 {[%emt 0:00:09]} 34. b4 {[%emt 0:00:37]} h5 {[%emt 0:01:15]} 35. g3 {[%emt 0:00:30]} Rd7 {[%emt 0:02:16]} 36. h3 {[%emt 0:00:35]} Rb7 {[%emt 0:00:44]} 37. g4 {[%emt 0:00:28]} hxg4 {[%emt 0:03:29]} 38. hxg4 {[%emt 0:00:08]} Rd7 {[%emt 0:00:03]} 39. gxf5 {[%emt 0:00:43]} gxf5 {[%emt 0:00:06]} 40. Kf2 {[%emt 0:00:00]} Rb7 {[%emt 0:00:00]} 41. Kg3 {[%emt 0:02:55]} Rd7 {[%emt 0:02:35]} 42. Kh4 {[%emt 0:06:15]} e4 {[%emt 0:06:37]} 43. fxe4 {[%emt 0:00:08]} fxe4 {[%emt 0:00:03]} 44. Kg3 {[%emt 0:00:04]} e3 {[%emt 0:00:29]} 45. Kf3 {[%emt 0:03:04]} Kf7 {[%emt 0:01:47]} 46. Kxe3 {[%emt 0:03:27]} Ke6 {[%emt 0:00:14]} 47. Rxe8+ {[%emt 0:01:12]} Kxd6 {[%emt 0:00:04]} 48. Kd4 {[%emt 0:02:35]} Kc6+ {[%emt 0:01:48]} 49. Kc4 {[%emt 0:00:05]} Kxb6 {[%emt 0:00:06]} 50. Re6+ {[%emt 0:00:04]} Kb7 {[%emt 0:00:11]} 51. Kc5 {[%emt 0:00:50]} Rh7 {[%emt 0:01:38]} 52. Re5 {[%emt 0:01:33]} Rg7 {[%emt 0:02:30]} 53. Kb5 {[%emt 0:01:35]} Rh7 {[%emt 0:00:14]} 54. Ka5 {[%emt 0:00:05]} Rg7 {[%emt 0:00:20]} 55. Re6 {[%emt 0:01:08]} Rh7 {[%emt 0:00:35]} 56. Rb6+ {[%emt 0:02:25]} Ka7 {[%emt 0:00:10]} 57. Rb5 {[%emt 0:02:21]} Rh1 {[%emt 0:00:26]} 58. Rf5 {[%emt 0:01:06]} Rh7 {[%emt 0:00:06]} 59. Rd5 {[%emt 0:03:48]} Rg7 {[%emt 0:00:57]} 1/2-1/2

[Event "EYCC Girls-U14 2019"]
[Site "Bratislava"]
[Date "2019.08.10"]
[Round "9.23"]
[White "Karavitaki, Evaggelia"]
[Black "Lhotska, Anna"]
[Result "1/2-1/2"]
[ECO "A30"]
[WhiteElo "1681"]
[BlackElo "1922"]
[Annotator "NA RC"]
[PlyCount "150"]
[EventDate "2019.08.02"]
[EventType "swiss"]
[EventCountry "SVK"]
[SourceTitle "playchess.com"]
[Source "ChessBase"]
[SourceQuality "1"]
[TimeControl "40/5400+30:1800+30"]

1. c4 {[%emt 0:00:00]} c5 {[%emt 0:00:03]} 2. Nf3 {[%emt 0:00:12]} Nc6 {[%emt 0:00:23]} 3. Nc3 {[%emt 0:04:14]} g6 {[%emt 0:00:50]} 4. d4 {[%emt 0:04:27]} cxd4 {[%emt 0:00:28]} 5. Nxd4 {[%emt 0:00:06]} Bg7 {[%emt 0:00:33]} 6. Nc2 {[%emt 0:05:11]} d6 {[%emt 0:05:02]} 7. e4 {[%emt 0:06:08]} Nf6 {[%emt 0:01:32]} 8. Be2 {[%emt 0:02:10]} O-O {[%emt 0:00:59]} 9. Be3 {[%emt 0:03:32]} Bd7 {[%emt 0:03:08]} 10. O-O {[%emt 0:02:12]} Rc8 {[%emt 0:01:35]} 11. f3 {[%emt 0:06:28]} Qc7 {[%emt 0:07:28]} 12. Rc1 {[%emt 0:04:34]} Qb8 {[%emt 0:01:47]} 13. Qd2 {[%emt 0:02:21]} Ne5 {[%emt 0:03:48]} 14. b3 {[%emt 0:01:27]} Rc7 {[%emt 0:18:38]} 15. Nd4 {[%emt 0:08:49]} b6 {[%emt 0:03:13]} 16. Bg5 {[%emt 0:06:26]} Nc6 {[%emt 0:09:20]} 17. Ndb5 {[%emt 0:02:58]} Rb7 {[%emt 0:02:02]} 18. Nd5 {[%emt 0:01:45]} a6 {[%emt 0:04:06]} 19. Nbc3 {[%emt 0:03:21]} Be6 {[%emt 0:07:01]} 20. Bxf6 {[%emt 0:06:41]} exf6 {[%emt 0:00:38]} 21. Rfd1 {[%emt 0:08:13]} f5 {[%emt 0:05:46]} 22. Qg5 {[%emt 0:05:38]} Kh8 {[%emt 0:01:56]} 23. Qh4 {[%emt 0:02:13]} Qd8 {[%emt 0:01:47]} 24. Qxd8 {[%emt 0:07:21]} Rxd8 {[%emt 0:00:10]} 25. Kf1 {[%emt 0:02:46]} Nd4 {[%emt 0:05:49]} 26. Kf2 {[%emt 0:00:51]} fxe4 {[%emt 0:00:30]} 27. fxe4 {[%emt 0:00:59]} Nxe2 {[%emt 0:03:32]} 28. Nxe2 {[%emt 0:00:27]} Bg4 {[%emt 0:00:39]} 29. Rd3 {[%emt 0:00:58]} Re8 {[%emt 0:02:29]} 30. Nec3 {[%emt 0:01:31]} f5 {[%emt 0:01:40]} 31. exf5 {[%emt 0:00:51]} Bxf5 {[%emt 0:00:05]} 32. Rdd1 {[%emt 0:00:29]} Bh6 {[%emt 0:00:59]} 33. Ra1 {[%emt 0:00:20]} b5 {[%emt 0:02:13]} 34. cxb5 {[%emt 0:00:43]} axb5 {[%emt 0:00:06]} 35. Rd4 {[%emt 0:00:35]} Bg7 {[%emt 0:00:23]} 36. Rb4 {[%emt 0:00:17]} Rc8 {[%emt 0:01:11]} 37. Rc1 {[%emt 0:00:40]} Be6 {[%emt 0:02:05]} 38. Re1 {[%emt 0:00:33]} Bg8 {[%emt 0:03:05]} 39. Re3 {[%emt 0:00:27]} Rbb8 {[%emt 0:00:56]} 40. Ke2 {[%emt 0:00:00]} Rc5 {[%emt 0:00:00]} 41. Rd3 {[%emt 0:03:13]} Re8+ {[%emt 0:11:26]} 42. Kd2 {[%emt 0:02:14]} Bh6+ {[%emt 0:05:19]} 43. Nf4 {[%emt 0:06:17]} Rec8 {[%emt 0:07:10]} 44. g3 {[%emt 0:02:51]} Bg7 {[%emt 0:05:02]} 45. Nxb5 {[%emt 0:15:11]} Rc2+ {[%emt 0:00:40]} 46. Ke3 {[%emt 0:00:44]} g5 {[%emt 0:01:13]} 47. Nh5 {[%emt 0:02:36]} Bh6 {[%emt 0:01:20]} 48. Nxd6 {[%emt 0:01:07]} R8c6 {[%emt 0:01:05]} 49. Nf5 {[%emt 0:00:43]} Bf8 {[%emt 0:00:39]} 50. Re4 {[%emt 0:00:32]} Rxh2 {[%emt 0:01:17]} 51. g4 {[%emt 0:00:28]} Rcc2 {[%emt 0:00:53]} 52. Kd4 {[%emt 0:00:36]} Bc5+ {[%emt 0:00:39]} 53. Ke5 {[%emt 0:00:05]} Rxa2 {[%emt 0:00:19]} 54. Nf6 Rhd2 {[%emt 0:00:41]} 55. Rxd2 {[%emt 0:01:22]} Rxd2 {[%emt 0:00:05]} 56. Nxg8 {[%emt 0:00:30]} Kxg8 {[%emt 0:00:05]} 57. Kf6 {[%emt 0:00:21]} Rd8 {[%emt 0:01:28]} 58. Kxg5 {[%emt 0:00:32]} Rb8 {[%emt 0:00:24]} 59. Kf6 {[%emt 0:00:39]} Rb6+ {[%emt 0:00:30]} 60. Re6 {[%emt 0:00:22]} Rb8 {[%emt 0:00:41]} 61. Rc6 {[%emt 0:00:36]} Bf8 {[%emt 0:00:14]} 62. Rc3 {[%emt 0:00:34]} Rb6+ {[%emt 0:00:43]} 63. Kg5 {[%emt 0:00:21]} Rb4 {[%emt 0:00:49]} 64. Rd3 {[%emt 0:00:35]} Rb5 {[%emt 0:00:18]} 65. Kf6 {[%emt 0:00:30]} Rb6+ {[%emt 0:00:15]} 66. Ke5 {[%emt 0:00:28]} Rb5+ {[%emt 0:00:35]} 67. Kf4 {[%emt 0:00:34]} Rb4+ {[%emt 0:00:11]} 68. Kf3 {[%emt 0:00:24]} Kf7 {[%emt 0:00:35]} 69. Ne3 {[%emt 0:00:23]} Kg6 {[%emt 0:00:33]} 70. Nd5 {[%emt 0:00:41]} Rb7 {[%emt 0:00:41]} 71. Nf4+ {[%emt 0:00:27]} Kf7 {[%emt 0:00:27]} 72. Ke4 {[%emt 0:00:36]} Rb4+ {[%emt 0:00:35]} 73. Kf5 {[%emt 0:00:28]} Rb5+ {[%emt 0:00:51]} 74. Ke4 {[%emt 0:00:20]} Rb4+ {[%emt 0:00:11]} 75. Kf5 {[%emt 0:00:25]} Rb5+ {[%emt 0:00:11]} 1/2-1/2

[Event "EYCC Girls-U14 2019"]
[Site "Bratislava"]
[Date "2019.08.10"]
[Round "9.24"]
[White "Lorente Serrano, Rosa Adela"]
[Black "Varekha, Anna"]
[Result "0-1"]
[ECO "A06"]
[WhiteElo "1788"]
[BlackElo "1643"]
[Annotator "NA RC"]
[PlyCount "72"]
[EventDate "2019.08.02"]
[EventType "swiss"]
[EventCountry "SVK"]
[SourceTitle "playchess.com"]
[Source "ChessBase"]
[SourceQuality "1"]
[TimeControl "40/5400+30:1800+30"]

1. Nf3 {[%emt 0:00:00]} d5 {[%emt 0:00:00]} 2. g3 {[%emt 0:00:01]} Bf5 {[%emt 0:00:13]} 3. Bg2 {[%emt 0:00:58]} e6 {[%emt 0:00:26]} 4. O-O {[%emt 0:00:54]} Nf6 {[%emt 0:00:50]} 5. d3 {[%emt 0:00:59]} Be7 {[%emt 0:01:20]} 6. Nbd2 {[%emt 0:07:31]} O-O {[%emt 0:05:16]} 7. h3 {[%emt 0:00:44]} h6 {[%emt 0:00:42]} 8. Qe1 {[%emt 0:06:57]} c5 {[%emt 0:03:51]} 9. e4 {[%emt 0:00:52]} Bh7 {[%emt 0:00:19]} 10. e5 {[%emt 0:02:23]} Nfd7 {[%emt 0:00:26]} 11. Qe2 {[%emt 0:00:46]} Nc6 {[%emt 0:01:44]} 12. Re1 {[%emt 0:00:44]} Qc7 {[%emt 0:00:39]} 13. Nf1 {[%emt 0:02:28]} Rfc8 {[%emt 0:03:13]} 14. N1h2 {[%emt 0:02:55]} b5 {[%emt 0:05:27]} 15. g4 {[%emt 0:03:33]} c4 {[%emt 0:06:20]} 16. Bd2 {[%emt 0:05:44]} Rab8 {[%emt 0:04:53]} 17. g5 {[%emt 0:00:23]} hxg5 {[%emt 0:03:28]} 18. Rac1 {[%emt 0:08:46]} Nc5 {[%emt 0:05:18]} 19. d4 {[%emt 0:04:09]} Ne4 {[%emt 0:02:33]} 20. Be3 {[%emt 0:06:13]} c3 {[%emt 0:01:55]} 21. b3 {[%emt 0:01:15]} Rf8 {[%emt 0:05:42]} 22. Ng4 {[%emt 0:02:39]} f5 {[%emt 0:03:00]} 23. exf6 {[%emt 0:00:52]} gxf6 {[%emt 0:00:30]} 24. h4 {[%emt 0:01:38]} Kg7 {[%emt 0:06:02]} 25. hxg5 {[%emt 0:00:56]} f5 {[%emt 0:01:06]} 26. g6 {[%emt 0:00:35]} fxg4 {[%emt 0:02:13]} 27. Ne5 {[%emt 0:02:00]} Nxe5 {[%emt 0:05:42]} 28. dxe5 {[%emt 0:00:31]} Bxg6 {[%emt 0:00:29]} 29. Qxg4 {[%emt 0:00:12]} Rf5 {[%emt 0:01:44]} 30. f3 {[%emt 0:01:08]} Ng5 {[%emt 0:03:41]} 31. b4 {[%emt 0:04:02]} Rbf8 {[%emt 0:04:38]} 32. Rf1 {[%emt 0:01:32]} a6 {[%emt 0:00:30]} 33. Rcd1 {[%emt 0:01:02]} Qc4 {[%emt 0:03:22]} 34. Rd4 {[%emt 0:00:37]} Qe2 {[%emt 0:01:18]} 35. Rd3 {[%emt 0:01:33]} Qxc2 {[%emt 0:02:14]} 36. Rdd1 {[%emt 0:04:26]} Qxa2 {[%emt 0:01:37]} 0-1